[Event "10th Menchik Memorial 2025"]
[Site "London"]
[Date "2025.03.21"]
[Round "4.1"]
[White "Yao, Lan"]
[Black "Schulze, Lara"]
[Result "1/2-1/2"]
[Annotator "TA"]
[ECO "B67"]
[WhiteElo "2294"]
[BlackElo "2313"]
[PlyCount "44"]
[EventDate "2025.03.11"]
[EventType "tourn"]
[EventCountry "ENG"]
[SourceTitle "playchess.com"]
[Source "ChessBase"]
[SourceQuality "1"]
[TimeControl "5400+30"]

{[%evp 16,44,41,30,41,19,14,10,33,26,35,25,41,33,33,14,18,16,21,0,0,0,0,0,0,0,0,0,0,0,0]} 1. e4 {[%emt 0:00:03]} c5 {[%emt 0:00:02]} 2. Nf3 {[%emt 0:00:06]} d6 {[%emt 0:00:13]} 3. d4 {[%emt 0:00:03]} cxd4 {[%emt 0:00:08]} 4. Nxd4 {[%emt 0:00:02]} Nf6 {[%emt 0:00:06]} 5. Nc3 {[%emt 0:00:04]} Nc6 {[%emt 0:00:05]} 6. Bg5 {[%emt 0:00:08]} e6 {[%emt 0:00:14]} 7. Qd2 {[%emt 0:00:18]} a6 {[%emt 0:00:13]} 8. O-O-O {[%emt 0:00:19]} Bd7 {[%emt 0:00:09]} 9. Kb1 {[%emt 0:00:12]} Be7 {[%emt 0:00:58] B67: Sicilian: Richter-Rauzer: 7...a6 8 0-0-0 Bd7, lines without 9 f4 Be7.} 10. Nxc6 {[%emt 0:04:19]} Bxc6 {[%emt 0:00:18]} 11. f3 {[%emt 0:00:09]} Qc7 {[%emt 0:02:07]} 12. h4 {[%emt 0:07:23]} h6 {[%emt 0:01:38]} 13. Be3 {[%emt 0:01:13]} h5 {[%emt 0:01:22]} 14. Bd3 {[%emt 0:05:27]} d5 {[%emt 0:07:44]} 15. exd5 {[%emt 0:14:06]} Nxd5 {[%emt 0:00:31] The position is equal.} 16. Nxd5 {[%emt 0:00:23]} Bxd5 {[%emt 0:00:34]} 17. c4 {[%emt 0:00:59]} Bc6 {[%emt 0:02:01]} 18. Qf2 $146 {[%emt 0:02:18]} (18. Bd4 e5 19. Bc3 O-O-O 20. Qe3 Bf6 21. Rhe1 Rhe8 22. g3 g6 23. Be4 {1-0 Sargsyan,S (2292)-Karpenko,A (2132) Vanadzor op 2024 (9)}) 18... O-O {[%emt 0:11:52]} 19. Bb6 {[%emt 0:09:46]} Qf4 {[%emt 0:00:52]} 20. Be3 {[%emt 0:03:42]} Qc7 {[%emt 0:02:07]} 21. Bb6 {[%emt 0:05:03]} Qf4 {[%emt 0:00:20]} 22. Be3 {[%emt 0:00:15]} Qc7 {[%emt 0:05:24] Weighted Error Value: White=0.08 (flawless) /Black=0.06 (flawless)   OK:         	White=5     	Black=6} 1/2-1/2

[Event "10th Menchik Memorial 2025"]
[Site "London"]
[Date "2025.03.21"]
[Round "4.2"]
[White "Unuk, Laura"]
[Black "Hunt, Harriet V"]
[Result "1/2-1/2"]
[Annotator "TA"]
[ECO "A46"]
[WhiteElo "2301"]
[BlackElo "2296"]
[PlyCount "134"]
[EventDate "2025.03.11"]
[EventType "tourn"]
[EventCountry "ENG"]
[SourceTitle "playchess.com"]
[Source "ChessBase"]
[SourceQuality "1"]
[TimeControl "5400+30"]

{[%evp 9,134,10,21,12,12,0,22,21,34,22,33,0,24,0,0,1,10,9,4,8,15,9,9,16,8,8,7,-8,-7,-9,-1,-42,0,-45,-21,-51,-45,-46,-49,-60,-55,-55,-56,-56,-56,-64,-68,-77,-69,-87,-71,-71,-71,-71,-71,-71,-71,-77,-66,-66,-66,-66,-66,-77,-67,-84,-29,-84,-29,-29,-27,-70,-27,-27,-27,-27,-27,-27,-8,-27,-8,-27,-8,-27,-27,-27,-27,-27,-8,-27,-27,-27,-27,-27,-27,-27,-27,-27,-12,-27,-27,-27,-27,-27,0,-8,-8,-8,0,0,0,0,0,0,0,0,0,0,0,0,0,-8,-8,-8,-8,-8,-8]} 1. d4 {[%emt 0:00:03]} Nf6 {[%emt 0:00:09]} 2. g3 {[%emt 0:00:36]} d5 {[%emt 0:01:00]} 3. Bg2 {[%emt 0:00:26]} e6 {[%emt 0:05:25]} 4. Nf3 {[%emt 0:00:17]} b5 {[%emt 0:00:41]} 5. a4 {[%emt 0:01:59]} b4 {[%emt 0:00:16] [#]} 6. c4 $1 {[%emt 0:00:57] A46: 1 d4 Nf6 2 Nf3 e6: Torre, London and Colle Systems.} bxc3 {[%emt 0:00:27]} 7. bxc3 {[%emt 0:01:02]} a5 {[%emt 0:05:45]} 8. O-O {[%emt 0:00:38]} Ba6 {[%emt 0:02:20]} 9. Ne5 {[%emt 0:01:37]} Bd6 {[%emt 0:02:20]} 10. Nd2 $146 {[%emt 0:05:14]} (10. c4 c5 11. Ba3 O-O 12. Nc3 cxd4 13. Qxd4 Bxa3 14. Rxa3 Qe7 15. Rb3 dxc4 16. Nxc4 {1-0 Vorisek,J (2276)-Hradecky,I (2015) CZE-chT2A 1920 2019 (9.5)}) 10... O-O {[%emt 0:03:18]} 11. Ndc4 {[%emt 0:18:19]} Nfd7 {[%emt 0:15:07]} 12. Nxd7 {[%emt 0:08:18]} (12. Nxa5 Nxe5 13. dxe5 Bxe5 $15) 12... Qxd7 {[%emt 0:03:26]} 13. Nxa5 {[%emt 0:17:48] Not much happening anymore} Bxe2 {[%emt 0:00:37]} 14. Qxe2 {[%emt 0:00:06]} Rxa5 {[%emt 0:00:08]} 15. c4 {[%emt 0:00:07]} Rxa4 {[%emt 0:05:58]} 16. Rxa4 {[%emt 0:00:09] White sacrificed a pawn} Qxa4 {[%emt 0:00:03]} 17. cxd5 {[%emt 0:00:07]} exd5 {[%emt 0:00:31]} 18. Qg4 {[%emt 0:13:22]} Nc6 {[%emt 0:08:02]} 19. Be3 {[%emt 0:04:52]} Ne7 {[%emt 0:01:52]} 20. h3 {[%emt 0:05:26]} Qc2 {[%emt 0:02:52]} 21. Rc1 {[%emt 0:02:50]} Qd3 {[%emt 0:02:22]} (21... Qg6 {simplifies} 22. Qxg6 hxg6 23. Rb1 Ra8) 22. Bg5 {[%emt 0:02:55]} f6 {[%emt 0:06:20]} 23. Qe6+ {[%emt 0:00:12]} Kh8 {[%emt 0:01:03]} 24. Bf4 {[%emt 0:01:43]} Bxf4 {[%emt 0:06:54]} 25. gxf4 {[%emt 0:01:20]} Ng6 {[%emt 0:07:39]} 26. Rxc7 {[%emt 0:01:13]} Qd1+ $1 {[%emt 0:03:50]} 27. Kh2 {[%emt 0:01:00]} Qxd4 {[%emt 0:00:37]} 28. Rc8 {[%emt 0:05:24] Threatens to win with Rxf8+.} Qxf4+ {[%emt 0:01:51]} 29. Kg1 {[%emt 0:00:01]} Qb4 {[%emt 0:03:11]} ({Don't go for} 29... d4 $2 30. Bd5 $18) 30. Bxd5 {[%emt 0:00:59][%cal Oe6g8] [#]} Rxc8 {[%emt 0:00:21]} 31. Qxc8+ {[%emt 0:00:06]} Qf8 {[%emt 0:00:03]} 32. Qxf8+ {[%emt 0:03:24]} Nxf8 $17 {[%emt 0:00:02][%mdl 4096] Endgame KB-KN. Black is a pawn up.} 33. Kg2 {[%emt 0:00:03]} g6 {[%emt 0:00:17]} 34. Kg3 {[%emt 0:00:03]} Kg7 {[%emt 0:00:19]} 35. Kf4 {[%emt 0:01:01]} Nd7 {[%emt 0:00:40]} 36. Kg3 {[%emt 0:00:41]} Kf8 {[%emt 0:00:23]} 37. f4 {[%emt 0:02:01]} Ke7 {[%emt 0:02:34]} (37... f5 $17) 38. Kf3 {[%emt 0:00:03]} (38. h4 $11) 38... Kd6 {[%emt 0:01:03]} ({Better is} 38... f5 $17) 39. Bg8 $1 $11 {[%emt 0:00:05]} Nf8 {[%emt 0:00:24]} 40. Ke4 {[%emt 0:00:05]} h5 {[%emt 0:01:29]} 41. h4 {[%emt 0:02:29]} Ke7 {[%emt 0:01:20]} 42. Bc4 {[%emt 0:00:05]} Nd7 {[%emt 0:01:20]} 43. Kd4 {[%emt 0:00:26]} Nb6 {[%emt 0:03:53]} 44. Bb3 {[%emt 0:00:16]} Nc8 {[%emt 0:00:13]} 45. Bc2 {[%emt 0:00:06]} Kf7 {[%emt 0:00:06]} 46. Bb3+ {[%emt 0:00:21]} Kg7 {[%emt 0:00:09]} 47. Be6 {[%emt 0:01:28]} Ne7 {[%emt 0:00:05]} 48. Ke4 {[%emt 0:00:24]} Kf8 {[%emt 0:00:27]} 49. Kd4 {[%emt 0:00:15]} Ng8 {[%emt 0:00:58]} 50. Ke4 {[%emt 0:01:17]} Nh6 {[%emt 0:00:11]} 51. Bc8 {[%emt 0:00:37]} Ke7 {[%emt 0:00:11]} 52. Kd4 {[%emt 0:01:16]} Kd6 {[%emt 0:03:14]} 53. Ke4 {[%emt 0:00:01]} Ng8 {[%emt 0:01:43]} 54. Kd4 {[%emt 0:00:43]} Ne7 {[%emt 0:00:12]} 55. Bh3 {[%emt 0:00:02]} Nd5 {[%emt 0:00:22]} 56. Ke4 {[%emt 0:00:21]} Kc5 {[%emt 0:00:58]} 57. Bf1 {[%emt 0:00:18] The position is equal.} Nc3+ {[%emt 0:00:33]} 58. Kd3 {[%emt 0:00:10]} Nb5 {[%emt 0:00:32]} 59. f5 {[%emt 0:01:53][%cal Bf4f5,Bf5f6][%mdl 32]} g5 {[%emt 0:00:37]} 60. hxg5 {[%emt 0:00:02]} fxg5 {[%emt 0:00:05][%cal Bf6g5,Bg5g4][%mdl 32] Strongly threatening ...Kd5.} 61. Ke4 {[%emt 0:00:11] White threatens Bxb5 and mate.} Nd6+ {[%emt 0:00:29]} 62. Ke5 {[%emt 0:00:06]} g4 {[%emt 0:00:39]} 63. f6 {[%emt 0:00:26]} h4 {[%emt 0:01:04]} 64. Kf4 {[%emt 0:00:14]} h3 {[%emt 0:00:23]} 65. Bxh3 {[%emt 0:00:20]} gxh3 {[%emt 0:00:04]} 66. Kg3 {[%emt 0:00:02]} Ne4+ {[%emt 0:00:07]} 67. Kxh3 {[%emt 0:00:03]} Nxf6 {[%emt 0:00:35] Weighted Error Value: White=0.10 (very precise) /Black=0.08 (flawless)   Mistake:       	White=1     	Black=2      Inaccurate:     	White=4     	Black=3      OK:         	White=24    	Black=21     Best:        	White=1     	Black=6      Strong:       	White=1     	Black=1} 1/2-1/2

[Event "10th Menchik Memorial 2025"]
[Site "London"]
[Date "2025.03.21"]
[Round "4.3"]
[White "Mirzoeva, Elmira"]
[Black "Sliwicka, Alicja"]
[Result "1-0"]
[Annotator "RC"]
[ECO "C00"]
[WhiteElo "2272"]
[BlackElo "2342"]
[PlyCount "99"]
[EventDate "2025.03.11"]
[EventType "tourn"]
[EventCountry "ENG"]
[SourceTitle "playchess.com"]
[Source "ChessBase"]
[SourceQuality "1"]
[TimeControl "5400+30"]

1. Nf3 {[%emt 0:00:08]} d5 {[%emt 0:00:31]} 2. g3 {[%emt 0:00:14]} Nf6 {[%emt 0:01:15]} 3. Bg2 {[%emt 0:00:18]} e6 {[%emt 0:01:03]} 4. O-O {[%emt 0:00:23]} c5 {[%emt 0:01:17]} 5. d3 {[%emt 0:00:32]} Nc6 {[%emt 0:00:20]} 6. Nbd2 {[%emt 0:00:28]} Be7 {[%emt 0:00:37]} 7. e4 {[%emt 0:00:21]} b6 {[%emt 0:01:03]} 8. Re1 {[%emt 0:00:42]} Bb7 {[%emt 0:00:17]} 9. c3 {[%emt 0:00:45]} Qc7 {[%emt 0:00:21]} 10. Qe2 {[%emt 0:01:28]} h6 {[%emt 0:01:35]} 11. Nf1 {[%emt 0:02:10]} dxe4 {[%emt 0:13:36]} 12. dxe4 {[%emt 0:00:17]} a5 {[%emt 0:01:46]} 13. a4 {[%emt 0:09:19]} Ba6 {[%emt 0:01:34]} 14. Qc2 {[%emt 0:02:07]} Rd8 {[%emt 0:01:54]} 15. N1d2 {[%emt 0:01:38]} Bd3 {[%emt 0:11:28]} 16. Qb3 {[%emt 0:01:03]} c4 {[%emt 0:06:49]} 17. Nxc4 {[%emt 0:18:36]} Bc5 {[%emt 0:00:12]} 18. Bf4 {[%emt 0:07:35]} Qe7 {[%emt 0:01:47]} 19. Nce5 {[%emt 0:11:45]} Nxe5 {[%emt 0:02:40]} 20. Nxe5 {[%emt 0:00:14]} Ba6 {[%emt 0:08:46]} 21. Qc2 {[%emt 0:40:57]} Bb7 {[%emt 0:03:12]} 22. Nd3 {[%emt 0:00:00]} O-O {[%emt 0:03:03]} 23. Nxc5 {[%emt 0:00:00]} Qxc5 {[%emt 0:01:55]} 24. Be3 {[%emt 0:00:00]} Qc6 {[%emt 0:00:53]} 25. f3 {[%emt 0:00:00]} Nd7 {[%emt 0:00:31]} 26. Red1 {[%emt 0:00:00]} Ne5 {[%emt 0:00:37]} 27. Qb3 {[%emt 0:00:00]} Nc4 {[%emt 0:01:39]} 28. Bd4 {[%emt 0:00:00]} e5 {[%emt 0:03:08]} 29. Bf2 {[%emt 0:00:00]} Rb8 {[%emt 0:01:51]} 30. Bf1 {[%emt 0:00:00]} Ba6 {[%emt 0:00:23]} 31. Qa2 {[%emt 0:00:00]} b5 {[%emt 0:03:48]} 32. axb5 {[%emt 0:00:00]} Qxb5 {[%emt 0:00:02]} 33. Rd5 {[%emt 0:00:00]} Qxb2 {[%emt 0:02:29]} 34. Qxb2 {[%emt 0:00:00]} Rxb2 {[%emt 0:00:06]} 35. Rc5 {[%emt 0:00:00]} Nd2 {[%emt 0:01:08]} 36. Bxa6 {[%emt 0:00:00]} Nxf3+ {[%emt 0:01:00]} 37. Kg2 {[%emt 0:00:00]} Ng5 {[%emt 0:00:04]} 38. Re1 {[%emt 0:00:00]} f5 {[%emt 0:06:02]} 39. exf5 {[%emt 0:00:00]} Rxf5 {[%emt 0:01:59]} 40. Rc8+ {[%emt 0:00:00]} Kf7 {[%emt 0:00:31]} 41. Re2 {[%emt 0:00:00]} Rxe2 {[%emt 0:01:03]} 42. Bxe2 {[%emt 0:00:00]} e4 {[%emt 0:00:16]} 43. Rc5 {[%emt 0:01:21]} Rxc5 {[%emt 0:04:32]} 44. Bxc5 {[%emt 0:00:02]} e3 {[%emt 0:02:44]} 45. Bxe3 {[%emt 0:01:00]} Ne4 {[%emt 0:00:15]} 46. Bd4 {[%emt 0:00:27]} a4 {[%emt 0:00:21]} 47. Kf3 {[%emt 0:00:33]} Nd6 {[%emt 0:00:39]} 48. Bc5 {[%emt 0:00:39]} Nb7 {[%emt 0:01:21]} 49. Bb4 {[%emt 0:00:05]} Ke6 {[%emt 0:00:59]} 50. Ke4 {[%emt 0:00:25]} 1-0

[Event "10th Menchik Memorial 2025"]
[Site "London"]
[Date "2025.03.21"]
[Round "4.4"]
[White "Van Foreest, Machteld"]
[Black "Zimina, Olga"]
[Result "1/2-1/2"]
[Annotator "TA"]
[ECO "B22"]
[WhiteElo "2352"]
[BlackElo "2293"]
[PlyCount "89"]
[EventDate "2025.03.11"]
[EventType "tourn"]
[EventCountry "ENG"]
[SourceTitle "playchess.com"]
[Source "ChessBase"]
[SourceQuality "1"]
[TimeControl "5400+30"]

{[%evp 12,89,22,14,26,6,13,-5,33,47,70,54,48,53,82,53,55,62,45,49,62,0,0,0,0,0,5,29,5,-10,-4,-90,-47,-62,-45,-63,-57,-61,-55,-68,-27,-18,-6,0,-3,-13,-5,-54,-50,-43,-37,-42,-15,-16,0,0,11,0,33,2,7,8,20,27,22,10,10,10,12,11,21,0,0,0,0,0,0,0,0,0]} 1. e4 {[%emt 0:03:05]} c6 {[%emt 0:00:04]} 2. Nf3 {[%emt 0:00:24]} d5 {[%emt 0:00:08]} 3. d3 {[%emt 0:00:07]} g6 {[%emt 0:01:46]} 4. e5 {[%emt 0:00:15]} c5 {[%emt 0:06:49]} 5. c3 {[%emt 0:05:42]} Nc6 {[%emt 0:04:12]} 6. d4 {[%emt 0:01:34]} cxd4 {[%emt 0:07:06]} 7. cxd4 {[%emt 0:00:12]} Bg4 {[%emt 0:00:15] B22: Sicilian: 2 c3.} 8. Bb5 {[%emt 0:04:02]} Qb6 {[%emt 0:00:28]} 9. Nc3 {[%emt 0:00:50]} Bxf3 {[%emt 0:06:46]} 10. Qxf3 {[%emt 0:00:27]} Qxd4 {[%emt 0:02:02]} 11. O-O {[%emt 0:06:49] [#] White sacrificed a pawn} e6 {[%emt 0:00:33]} 12. Rd1 {[%emt 0:00:43]} Qb6 $146 {[%emt 0:16:07] A sharp opening} (12... Qxe5 $2 13. Nxd5 exd5 14. Bf4 $18) ({Predecessor:} 12... Qxe5 13. Nxd5 exd5 14. Bf4 Qf6 15. Qxd5 Rd8 16. Bxc6+ bxc6 17. Qe4+ Ne7 18. Rxd8+ Kxd8 19. Be5 Qe6 {1-0 Sprenger,J (2514)-Medarde Santiago,L (2354) POR-chT Leiria 2017 (2.1)}) 13. Be3 {[%emt 0:11:09] White has more active pieces.} (13. Rxd5 {with more complications.} exd5 14. Nxd5 Qd8 15. Bg5) 13... Bc5 {[%emt 0:08:17]} 14. Bxc6+ {[%emt 0:05:31]} Qxc6 {[%emt 0:00:13]} 15. Rac1 {[%emt 0:00:51] [#]} Bxe3 {[%emt 0:00:32]} 16. fxe3 {[%emt 0:03:07]} (16. Qxe3 $14 Qb6 17. Qxb6 axb6 18. Nb5) 16... Qb6 $1 $11 {[%emt 0:06:05][%cal Og8e7]} 17. Na4 {[%emt 0:04:57]} Qb4 {[%emt 0:04:34]} 18. Rd4 {[%emt 0:02:07]} Qe7 {[%emt 0:02:06]} 19. e4 {[%emt 0:09:13]} Qg5 {[%emt 0:06:06][%csl LRc1,LRe5] Prevents Qf4.} 20. Rf1 {[%emt 0:25:09]} Nh6 {[%emt 0:00:32]} 21. Nc5 {[%emt 0:04:59]} (21. exd5 $11 Qxe5 22. Rdd1) 21... Qxe5 {[%emt 0:02:15]} 22. Qd1 {[%emt 0:01:18] and Qa4+ would now be decisive} Qc7 {[%emt 0:18:47]} 23. Qa4+ {[%emt 0:05:55]} Qc6 $1 {[%emt 0:00:01]} 24. exd5 {[%emt 0:00:49]} Qxa4 {[%emt 0:00:02]} 25. Nxa4 {[%emt 0:01:58]} Rd8 {[%emt 0:02:52]} 26. Rb4 {[%emt 0:01:13]} b6 {[%emt 0:01:59]} 27. dxe6 {[%emt 0:00:03]} fxe6 {[%emt 0:01:09]} 28. Nc3 {[%emt 0:01:01]} Nf5 {[%emt 0:00:44]} 29. Nb5 {[%emt 0:00:26]} (29. Re4 $11) 29... Rd7 $15 {[%emt 0:00:22]} 30. Ra4 {[%emt 0:00:41][%cal Og2g4]} a5 {[%emt 0:00:32]} 31. b4 {[%emt 0:00:44]} Nd4 {[%emt 0:00:15]} 32. Nc3 {[%emt 0:00:27]} Nc6 {[%emt 0:01:11]} 33. bxa5 {[%emt 0:00:02]} Nxa5 {[%emt 0:01:08]} 34. Re4 {[%emt 0:00:04]} Re7 {[%emt 0:00:32]} 35. Rfe1 {[%emt 0:00:03][%cal Oc3d5]} O-O {[%emt 0:00:43]} 36. Nd5 {[%emt 0:00:38]} (36. Rxe6 Rxe6 37. Rxe6 Rc8) 36... Ref7 {[%emt 0:00:27]} 37. Nxb6 {[%emt 0:00:33]} Rf2 {[%emt 0:00:30]} 38. Nd7 {[%emt 0:00:33] The position is equal.} R8f7 {[%emt 0:00:30]} 39. Ne5 {[%emt 0:00:28]} R7f4 {[%emt 0:00:11]} 40. Rxf4 {[%emt 0:01:34]} Rxf4 {[%emt 0:00:02]} 41. Rb1 {[%emt 0:00:20]} Ra4 {[%emt 0:00:25]} 42. Rb2 {[%emt 0:00:26]} Nc4 {[%emt 0:00:23]} 43. Rb8+ {[%emt 0:00:04]} Kg7 {[%emt 0:00:06]} 44. Rb7+ {[%emt 0:00:03]} Kf6 {[%emt 0:01:19]} 45. Nxc4 {[%emt 0:00:37] Weighted Error Value: White=0.13 (very precise) /Black=0.09 (flawless)   Mistake:       	White=3     	---        Inaccurate:     	White=2     	Black=6      OK:         	White=10    	Black=16     Best:        	White=3     	Black=1      Strong:       	---       	Black=2} 1/2-1/2

[Event "10th Menchik Memorial 2025"]
[Site "London"]
[Date "2025.03.21"]
[Round "4.5"]
[White "Navrotescu, Andreea"]
[Black "Toma, Katarzyna"]
[Result "1-0"]
[Annotator "TA"]
[ECO "A36"]
[WhiteElo "2288"]
[BlackElo "2177"]
[PlyCount "81"]
[EventDate "2025.03.11"]
[EventType "tourn"]
[EventCountry "ENG"]
[SourceTitle "playchess.com"]
[Source "ChessBase"]
[SourceQuality "1"]
[TimeControl "5400+30"]

{[%evp 13,80,2,12,6,31,13,31,-40,-51,-47,-45,-71,-75,-63,-65,-70,-68,-90,-101,-96,-94,-80,-68,-75,-32,-91,-21,-37,-36,-32,-14,-22,0,-41,0,0,0,-50,-68,-81,0,0,0,0,68,12,14,0,0,0,0,0,15,8,211,6,381,133,843,820,806,835,834,639,824,834,856,837,822]} 1. c4 {[%emt 0:02:54]} Nf6 {[%emt 0:00:10]} 2. Nc3 {[%emt 0:00:12]} g6 {[%emt 0:00:23]} 3. e4 {[%emt 0:00:17]} c5 {[%emt 0:00:04]} 4. g3 {[%emt 0:01:20]} Nc6 {[%emt 0:01:07]} 5. Bg2 {[%emt 0:00:26]} d6 {[%emt 0:04:09]} 6. d3 {[%emt 0:03:11]} Bg7 {[%emt 0:02:00]} 7. Nge2 {[%emt 0:00:23]} Bd7 {[%emt 0:01:51]} 8. a3 {[%emt 0:01:17] A36: Symmetrical English vs ...g6: 4 Bg2 Bg7.} O-O {[%emt 0:02:10]} 9. Rb1 {[%emt 0:00:17]} Nd4 {[%emt 0:03:18]} 10. Nxd4 {[%emt 0:01:32]} (10. O-O $14) 10... cxd4 $15 {[%emt 0:00:02]} 11. Ne2 $146 {[%emt 0:00:11]} (11. Nd5 a5 12. O-O a4 13. Nxf6+ Bxf6 14. Bh6 Bg7 15. Bxg7 Kxg7 16. f4 b5 17. f5 {1-0 Shirov,A (2673)-Garcia Perez,J (2081) ESP-chT Rapid 2022 (2)}) 11... e5 {[%emt 0:02:13]} 12. O-O {[%emt 0:01:16]} b5 {[%emt 0:01:19]} 13. cxb5 {[%emt 0:15:47]} Bxb5 {[%emt 0:00:07]} 14. a4 {[%emt 0:00:05]} Bc6 {[%emt 0:01:52]} 15. f4 {[%emt 0:08:09]} a5 {[%emt 0:01:40]} 16. h3 {[%emt 0:07:21]} Nd7 {[%emt 0:02:06]} 17. b3 {[%emt 0:01:17]} Re8 {[%emt 0:09:21]} 18. Ba3 {[%emt 0:01:24]} Nb6 {[%emt 0:03:50]} 19. Qc2 {[%emt 0:17:49]} (19. Qd2 $15) 19... Qd7 {[%emt 0:00:37]} (19... Rc8 $17 {[%cal Oc6e4] and ...Bxe4! should not be overlooked} 20. Qd2 d5) 20. Rfc1 {[%emt 0:02:33]} Rec8 {[%emt 0:02:58][%cal Oc6e4] [#]} 21. Qd2 {[%emt 0:02:47]} h6 {[%emt 0:15:23]} 22. Kh2 {[%emt 0:06:55]} Bb7 {[%emt 0:06:53]} 23. h4 {[%emt 0:03:15]} Rxc1 {[%emt 0:03:49]} 24. Rxc1 {[%emt 0:00:09]} Qd8 {[%emt 0:00:56]} 25. fxe5 {[%emt 0:03:18]} ({White should play} 25. Ng1 $11) 25... dxe5 {[%emt 0:00:16]} 26. Bh3 {[%emt 0:00:27]} Bc8 {[%emt 0:06:45]} (26... f5 $17 27. exf5 gxf5) 27. Bxc8 $11 {[%emt 0:00:32]} Nxc8 {[%emt 0:00:01]} 28. Ng1 {[%emt 0:04:59]} f5 {[%emt 0:03:02]} (28... Nb6 $11) 29. Rc6 {[%emt 0:00:31] White has more active pieces.} (29. Rc5 $14) 29... fxe4 {[%emt 0:00:47]} 30. Rxg6 {[%emt 0:03:25]} (30. dxe4 {simplifies} Ne7 31. Re6 Ra7 32. Rxe7 Rxe7 33. Bxe7 Qxe7 34. Qxa5 Qb7 35. Qd5+) 30... e3 {[%emt 0:00:25]} 31. Qg2 {[%emt 0:00:32]} Ra7 {[%emt 0:02:16]} 32. Qe4 {[%emt 0:02:02]} Qe8 {[%emt 0:04:18]} 33. Nf3 {[%emt 0:02:46]} Rf7 $2 {[%emt 0:06:23]} (33... Qf7 $1 $11) 34. Nxd4 $2 {[%emt 0:03:36]} (34. Nxe5 $18 {[%cal Oe4d5] And now Qd5! would win.} Rf2+ 35. Kg1) 34... Rf2+ $2 {[%emt 0:01:36][%mdl 8192]} (34... Ne7 $11 {and Black has nothing to worry.} 35. Rxg7+ (35. Qxe5 $2 {too greedy.} Rf2+ 36. Kh3 Qxg6 $19) 35... Rxg7 36. Qxe5 Qf7 37. Qxe3 (37. Qxa5 {gets mated.} Qf2+ 38. Kh1 Qxg3 39. Qa8+ Kh7 40. Qe4+ Kh8 41. Qa8+ Ng8) 37... Nf5 38. Nxf5 Qxf5) 35. Kh3 $2 {[%emt 0:00:59]} (35. Kg1 $18) 35... Qf7 {[%emt 0:05:12][%mdl 8192]} (35... Kh8 $16) 36. Ne6 $18 {[%emt 0:00:15] White is clearly winning.} Qf5+ {[%emt 0:02:14]} 37. Qxf5 {[%emt 0:00:15]} Rxf5 {[%emt 0:00:02]} 38. Rxg7+ {[%emt 0:00:07]} Kh8 {[%emt 0:00:09] [#]} 39. Rg4 {[%emt 0:00:10]} (39. Rc7 e2 40. Rxc8+ Kh7 41. Rc7+ Kg8 $11) 39... Nb6 {[%emt 0:01:43]} 40. Re4 {[%emt 0:00:16]} Nd5 {[%emt 0:00:39]} 41. Bc5 {[%emt 0:00:58] Weighted Error Value: White=0.36/Black=0.52  Loses game:     	---       	Black=3      Missed win:     	White=2     	---        Mistake:       	White=4     	Black=3      Inaccurate:     	White=2     	Black=2      OK:         	White=9     	Black=9      Best:        	White=2     	---} 1-0